fUST/lending_fUST_20250221
["ID","MTS","AMOUNT","RATE_DAILY","PERIOD"]
[353859778,1740099032116,-500.0,0.00013698,2]
[353859780,1740099032125,-500.0,0.00013698,2]
[353859782,1740099032135,-500.0,0.00013698,2]
[353859784,1740099032144,-500.0,0.00013698,2]
[353859786,1740099032153,-501.82976864,0.00013698,2]
[353859788,1740099032163,-500.0,0.00013698,2]
[353859790,1740099032172,-500.0,0.00013698,2]
[353859792,1740099032182,-500.0,0.00013698,2]
[353859794,1740099032191,-500.0,0.00013698,2]
[353859796,1740099032200,-1606.58,0.00013698,2]
[353859798,1740099032209,-500.0,0.00013698,2]
[353859800,1740099032218,-500.0,0.00013698,2]
[353859802,1740099032230,-500.0,0.00013698,2]
[353859804,1740099032239,-500.0,0.00013698,2]
[353859806,1740099032248,-500.0,0.00013698,2]
[353859808,1740099032258,-213.16228735,0.00013698,2]
[353860336,1740099037578,-286.83771265,0.00013698,2]
[353860338,1740099037588,-25.33525921,0.00013698,2]
[353860344,1740099037634,-696.21474079,0.00013698,2]
[353860346,1740099037644,-500.0,0.00013698,2]
[353860348,1740099037653,-500.0,0.00013698,2]
[353860350,1740099037662,-500.0,0.00013698,2]
[353860352,1740099037671,-834.0,0.00013698,2]
[353860355,1740099037680,-500.0,0.00013698,2]
[353860358,1740099037690,-500.0,0.00013698,2]
[353860360,1740099037699,-500.0,0.00013698,2]
[353860362,1740099037708,-660.44,0.00013698,2]
[353860365,1740099037718,-947.07,0.00013698,2]
[353860366,1740099037727,-500.0,0.00013698,2]
[353860369,1740099037737,-500.0,0.00013698,2]
[353860370,1740099037746,-500.0,0.00013698,2]
[353860373,1740099037756,-1000.0,0.00013698,2]
[353860375,1740099037765,-609.15,0.00013698,2]
[353860376,1740099037774,-500.0,0.00013698,2]
[353860378,1740099037784,-500.0,0.00013698,2]
[353860380,1740099037793,-500.0,0.00013698,2]
[353860382,1740099037803,-1114.79,0.00013698,2]
[353860385,1740099037812,-1228.62,0.00013698,2]
[353860387,1740099037822,-500.0,0.00013698,2]
[353860389,1740099037831,-621.37,0.00013698,2]
[353860391,1740099037840,-500.0,0.00013698,2]
[353860393,1740099037849,-758.38,0.00013698,2]
[353860395,1740099037859,-613.19,0.00013698,2]
[353860397,1740099037868,-632.61,0.00013698,2]
[353860399,1740099037877,-500.0,0.00013698,2]
[353860401,1740099037886,-572.23,0.00013698,2]
[353860403,1740099037895,-500.0,0.00013698,2]
[353860405,1740099037905,-500.0,0.00013698,2]
[353860407,1740099037914,-500.0,0.00013698,2]
[353860409,1740099037923,-1175.39,0.00013698,2]
[353860411,1740099037932,-865.49,0.00013698,2]
[353860413,1740099037942,-500.0,0.00013698,2]
[353860415,1740099037951,-500.0,0.00013698,2]
[353860417,1740099037960,-500.0,0.00013698,2]
[353860419,1740099037970,-774.91,0.00013698,2]
[353860421,1740099037979,-500.0,0.00013698,2]
[353860422,1740099037988,-500.0,0.00013698,2]
[353860424,1740099037998,-564.81,0.00013698,2]
[353860426,1740099038008,-500.0,0.00013698,2]
[353860429,1740099038018,-500.0,0.00013698,2]
[353860431,1740099038027,-500.0,0.00013698,2]
[353860433,1740099038036,-229.62978985,0.00013698,2]
[353860435,1740099038046,-500.0,0.00013698,2]
[353860437,1740099038055,-500.0,0.00013698,2]
[353860439,1740099038064,-500.0,0.00013698,2]
[353860441,1740099038074,-500.0,0.00013698,2]
[353860443,1740099038083,-242.72906089,0.00013698,2]
[353860445,1740099038092,-500.0,0.00013698,2]
[353860447,1740099038102,-500.0,0.00013698,2]
[353860449,1740099038112,-500.0,0.00013698,2]
[353860451,1740099038121,-500.0,0.00013698,2]
[353860453,1740099038130,-500.0,0.00013698,2]
[353860455,1740099038139,-500.0,0.00013698,2]
[353860457,1740099038149,-500.0,0.00013698,2]
[353860459,1740099038158,-500.0,0.00013698,2]
[353860461,1740099038168,-2172.75,0.00013698,2]
[353860463,1740099038177,-500.0,0.00013698,2]
[353860465,1740099038186,-500.0,0.00013698,2]
[353860467,1740099038195,-503.0,0.00013698,2]
[353860469,1740099038204,-500.0,0.00013698,2]
[353860471,1740099038214,-2112.09,0.00013698,2]
[353860473,1740099038223,-500.0,0.00013698,2]
[353860475,1740099038235,-500.0,0.00013698,2]
[353860477,1740099038244,-506.18087667,0.00013698,2]
[353860479,1740099038254,-589.91,0.00013698,2]
[353860481,1740099038263,-500.0,0.00013698,2]
[353860483,1740099038273,-528.95,0.00013698,2]
[353860485,1740099038282,-500.0,0.00013698,2]
[353860487,1740099038291,-500.0,0.00013698,2]
[353860489,1740099038300,-500.0,0.00013698,2]
[353860491,1740099038311,-580.3228832,0.00013698,2]
[353860493,1740099038320,-500.0,0.00013698,2]
[353860495,1740099038329,-500.0,0.00013698,2]
[353860497,1740099038339,-1090.79,0.00013698,2]
[353860499,1740099038348,-548.91148274,0.00013698,2]
[353860501,1740099038358,-500.0,0.00013698,2]
[353860503,1740099038367,-2970.58,0.00013698,2]
[353860505,1740099038376,-500.0,0.00013698,2]
[353860506,1740099038385,-7420.64,0.00013698,2]
[353860507,1740099038395,-36587.69,0.00013698,2]
[353860508,1740099038404,-500.0,0.00013698,2]
[353860509,1740099038413,-1427.22,0.00013698,2]
[353860510,1740099038423,-1803.93,0.00013698,2]
[353860511,1740099038433,-331.17445129,0.00013698,2]
[353860512,1740099038447,-168.82554871,0.00013698,2]
[353860513,1740099038456,-1296.89945129,0.00013698,2]
[353860514,1740099038468,-11797.99054871,0.00013698,2]
[353860515,1740099038479,-1128.54,0.00013698,2]
[353860516,1740099038489,-3325.92,0.00013698,2]
[353860517,1740099038498,-1290.8,0.00013698,2]
[353860518,1740099038508,-500.0,0.00013698,2]
[353860519,1740099038520,-500.0,0.00013698,2]
[353860521,1740099038530,-500.0,0.00013698,2]
[353860523,1740099038540,-1123.55,0.00013698,2]
[353860525,1740099038549,-500.0,0.00013698,2]
[353860527,1740099038559,-727.74,0.00013698,2]
[353860529,1740099038568,-500.0,0.00013698,2]
[353860531,1740099038578,-500.0,0.00013698,2]
[353860533,1740099038588,-2394.48,0.00013698,2]
[353860535,1740099038597,-500.0,0.00013698,2]
[353860537,1740099038606,-500.0,0.00013698,2]
[353860538,1740099038615,-883.8,0.00013698,2]
[353860541,1740099038625,-500.36388675,0.00013698,2]
[353860543,1740099038635,-1457.41,0.00013698,2]
[353860545,1740099038646,-500.0,0.00013698,2]
[353860547,1740099038656,-631.09,0.00013698,2]
[353860548,1740099038665,-500.0,0.00013698,2]
[353860550,1740099038675,-3211.81,0.00013698,2]
[353860552,1740099038684,-500.0,0.00013698,2]
[353860554,1740099038693,-500.0,0.00013698,2]
[353860557,1740099038703,-500.0,0.00013698,2]
[353860559,1740099038712,-503.54992364,0.00013698,2]
[353860561,1740099038722,-500.0,0.00013698,2]
[353860563,1740099038731,-500.0,0.00013698,2]
[353860565,1740099038740,-6337.6,0.00013698,2]
[353860567,1740099038750,-531.95,0.00013698,2]
[353860569,1740099038760,-288.04560858,0.00013698,2]
[353860570,1740099038770,-1198.37,0.00013698,2]
[353860573,1740099038780,-500.0,0.00013698,2]
[353860574,1740099038790,-503.71418303,0.00013698,2]
[353860576,1740099038799,-500.0,0.00013698,2]
[353860578,1740099038809,-2201.57,0.00013698,2]
[353860580,1740099038818,-500.0,0.00013698,2]
[353860582,1740099038828,-500.58466703,0.00013698,2]
[353860584,1740099038838,-3441.83,0.00013698,2]
[353860586,1740099038848,-513.0595766,0.00013698,2]
[353860588,1740099038858,-584.09,0.00013698,2]
[353860590,1740099038868,-682.12,0.00013698,2]
[353860592,1740099038878,-500.0,0.00013698,2]
[353860594,1740099038887,-1912.84,0.00013698,2]
[353860596,1740099038898,-500.0,0.00013698,2]
[353860598,1740099038908,-500.0,0.00013698,2]
[353860600,1740099038917,-855.35,0.00013698,2]
[353860602,1740099038926,-523.25761261,0.00013698,2]
[353860604,1740099038936,-657.23,0.00013698,2]
[353860606,1740099038945,-1282.81,0.00013698,2]
[353860608,1740099038955,-537.23,0.00013698,2]
[353860610,1740099038964,-500.0,0.00013698,2]
[353860612,1740099038973,-2073.86,0.00013698,2]
[353860614,1740099038983,-500.0,0.00013698,2]
[353860616,1740099038992,-500.0,0.00013698,2]
[353860617,1740099039001,-500.0,0.00013698,2]
[353860618,1740099039011,-500.0,0.00013698,2]
[353860619,1740099039020,-2400.28,0.00013698,2]
[353860620,1740099039029,-500.0,0.00013698,2]
[353860621,1740099039039,-1084.12,0.00013698,2]
[353860622,1740099039049,-500.0,0.00013698,2]
[353860629,1740099039176,-2528.55,0.00013698,2]
[353860630,1740099039186,-500.0,0.00013698,2]
[353860631,1740099039196,-500.0,0.00013698,2]
[353860632,1740099039206,-500.0,0.00013698,2]
[353860633,1740099039216,-500.29390617,0.00013698,2]
[353860634,1740099039228,-2085.88,0.00013698,2]
[353860635,1740099039240,-500.0,0.00013698,2]
[353860636,1740099039249,-501.2785299,0.00013698,2]
[353860637,1740099039258,-5873.51,0.00013698,2]
[353860638,1740099039268,-550.36,0.00013698,2]
[353860640,1740099039278,-500.0,0.00013698,2]
[353860641,1740099039287,-500.0,0.00013698,2]
[353860642,1740099039297,-500.0,0.00013698,2]
[353860643,1740099039306,-500.0,0.00013698,2]
[353860644,1740099039317,-542.22037632,0.00013698,2]
[353860645,1740099039326,-500.0,0.00013698,2]
[353860646,1740099039336,-500.0,0.00013698,2]
[353860647,1740099039345,-209.709451,0.00013698,2]
[353860648,1740099039355,-500.0,0.00013698,2]
[353860649,1740099039364,-500.0,0.00013698,2]
[353860650,1740099039373,-500.0,0.00013698,2]
[353860651,1740099039383,-500.0,0.00013698,2]
[353860652,1740099039393,-500.0,0.00013698,2]
[353860653,1740099039403,-500.0,0.00013698,2]
[353860654,1740099039412,-500.0,0.00013698,2]
[353860655,1740099039422,-500.0,0.00013698,2]
[353860656,1740099039431,-309.86,0.00013698,2]
[353860657,1740099039441,-755.6,0.00013698,2]
[353860658,1740099039451,-500.0,0.00013698,2]
[353860659,1740099039460,-378.3472983,0.00013698,2]
[353860660,1740099039470,-500.0,0.00013698,2]
[353860661,1740099039479,-500.0,0.00013698,2]
[353860662,1740099039488,-1871.42,0.00013698,2]
[353860663,1740099039497,-500.0,0.00013698,2]
[353860664,1740099039506,-500.0,0.00013698,2]
[353860666,1740099039517,-18104.48,0.00013698,2]
[353860668,1740099039527,-166.97301514,0.00013698,2]
[353860669,1740099039536,-500.0,0.00013698,2]
[353860670,1740099039545,-873.49,0.00013698,2]
[353860671,1740099039555,-500.0,0.00013698,2]
[353860672,1740099039565,-500.0,0.00013698,2]
[353860673,1740099039575,-500.0,0.00013698,2]
[353860674,1740099039585,-163.755283,0.00013699,2]
[353860675,1740099039594,-164.612171,0.00013699,2]
[353860676,1740099039603,-46247.4341032,0.00013699,2]
[353860677,1740099039613,-217.37198194,0.00013699,2]
[353860678,1740099039624,-500.0,0.00013699,2]
[353860679,1740099039634,-500.0,0.00013699,2]
[353860680,1740099039643,-500.0,0.00013699,2]
[353860681,1740099039653,-500.0,0.00013699,2]
[353860682,1740099039664,-619.53492158,0.00013699,2]
[353860683,1740099039673,-500.0,0.00013699,2]
[353860684,1740099039683,-500.0,0.00013699,2]
[353860685,1740099039692,-500.0,0.00013699,2]
[353860686,1740099039701,-500.0,0.00013699,2]
[353860687,1740099039711,-500.0,0.00013699,2]
[353860688,1740099039721,-500.0,0.00013699,2]
[353860689,1740099039730,-500.0,0.00013699,2]
[353860690,1740099039740,-500.0,0.00013699,2]
[353860691,1740099039750,-500.0,0.00013699,2]
[353860692,1740099039760,-500.0,0.00013699,2]
[353860693,1740099039769,-500.0,0.00013699,2]
[353860694,1740099039778,-575.81429424,0.00013699,2]
[353860695,1740099039787,-500.0,0.00013699,2]
[353860696,1740099039797,-260.71305373,0.00013699,2]
[353860697,1740099039807,-500.0,0.00013699,2]
[353860698,1740099039817,-500.0,0.00013699,2]
[353860699,1740099039827,-500.0,0.00013699,2]
[353860700,1740099039837,-500.0,0.00013699,2]
[353860701,1740099039846,-500.0,0.00013699,2]
[353860702,1740099039856,-500.0,0.00013699,2]
[353860703,1740099039866,-500.0,0.00013699,2]
[353860704,1740099039875,-500.0,0.00013699,2]
[353860705,1740099039885,-500.0,0.00013699,2]
[353860706,1740099039894,-500.0,0.00013699,2]
[353860707,1740099039904,-500.0,0.00013699,2]
[353860708,1740099039913,-500.0,0.00013699,2]
[353860709,1740099039923,-500.0,0.00013699,2]
[353860710,1740099039933,-500.0,0.00013699,2]
[353860711,1740099039942,-500.0,0.00013699,2]
[353860712,1740099039952,-500.0,0.00013699,2]
[353860713,1740099039961,-500.0,0.00013699,2]
[353860714,1740099039971,-500.0,0.00013699,2]
[353860715,1740099039981,-500.0,0.00013699,2]
[353860716,1740099039991,-500.0,0.00013699,2]
[353860717,1740099040000,-500.0,0.00013699,2]
[353860718,1740099040010,-500.0,0.00013699,2]
[353860719,1740099040019,-500.0,0.00013699,2]
[353860720,1740099040029,-500.0,0.0001378,2]
[353860721,1740099040038,-500.0,0.0001378,2]
[353860722,1740099040048,-528.42,0.0001378,2]
[353860723,1740099040058,-500.0,0.0001378,2]
[353860724,1740099040067,-500.0,0.0001378,2]
[353860725,1740099040076,-591.42,0.0001378,2]
[353860726,1740099040086,-500.0,0.0001378,2]
[353860727,1740099040095,-500.0,0.0001378,2]
[353860728,1740099040105,-297.13543309,0.0001378,2]
[353860729,1740099040115,-500.0,0.0001378,2]
[353860730,1740099040124,-500.0,0.0001378,2]
[353860731,1740099040133,-1606.58,0.0001378,2]
[353860732,1740099040143,-500.0,0.0001378,2]
[353860733,1740099040152,-500.0,0.0001378,2]
[353860734,1740099040162,-500.0,0.0001378,2]
[353860735,1740099040172,-500.0,0.0001378,2]
[353860736,1740099040181,-234.67048638,0.0001378,2]
[353860737,1740099040191,-721.55,0.0001378,2]
[353860738,1740099040201,-500.0,0.0001378,2]
[353860739,1740099040212,-500.0,0.0001378,2]
[353860740,1740099040222,-834.0,0.0001378,2]
[353860741,1740099040236,-660.44,0.0001378,2]
[353860742,1740099040246,-947.07,0.0001378,2]
[353860743,1740099040256,-500.0,0.0001378,2]
[353860744,1740099040265,-500.0,0.0001378,2]
[353860745,1740099040275,-500.0,0.0001378,2]
[353860746,1740099040284,-1000.0,0.0001378,2]
[353860747,1740099040294,-609.15,0.0001378,2]
[353860748,1740099040303,-500.0,0.0001378,2]
[353860749,1740099040315,-1114.79,0.0001378,2]
[353860750,1740099040326,-1228.62,0.0001378,2]
[353860751,1740099040336,-500.0,0.0001378,2]
[353860752,1740099040346,-621.37,0.0001378,2]
[353860753,1740099040356,-500.0,0.0001378,2]
[353860754,1740099040365,-758.38,0.0001378,2]
[353860755,1740099040375,-613.19,0.0001378,2]
[353860756,1740099040384,-632.61,0.0001378,2]
[353860757,1740099040394,-572.23,0.0001378,2]
[353860758,1740099040403,-500.0,0.0001378,2]
[353860759,1740099040413,-500.0,0.0001378,2]
[353860760,1740099040422,-1175.39,0.0001378,2]
[353860761,1740099040432,-865.49,0.0001378,2]
[353860762,1740099040441,-500.0,0.0001378,2]
[353860763,1740099040451,-316.09434136,0.0001378,2]
[353860764,1740099040460,-500.0,0.0001378,2]
[353860765,1740099040470,-774.91,0.0001378,2]
[353860766,1740099040479,-564.81,0.0001378,2]
[353860767,1740099040489,-396.08892718,0.0001378,2]
[353860768,1740099040499,-500.0,0.0001378,2]
[353860769,1740099040510,-500.0,0.0001378,2]
[353860770,1740099040520,-500.0,0.0001378,2]
[353860771,1740099040529,-500.0,0.0001378,2]
[353860772,1740099040539,-500.0,0.0001378,2]
[353860773,1740099040549,-500.0,0.0001378,2]
[353860774,1740099040558,-500.0,0.0001378,2]
[353860775,1740099040568,-500.0,0.0001378,2]
[353860776,1740099040577,-2172.75,0.0001378,2]
[353860777,1740099040587,-2112.09,0.0001378,2]
[353860778,1740099040596,-500.0,0.0001378,2]
[353860779,1740099040606,-589.91,0.0001378,2]
[353860780,1740099040616,-500.0,0.0001378,2]
[353860781,1740099040625,-528.95,0.0001378,2]
[353860782,1740099040635,-1090.79,0.0001378,2]
[353860783,1740099040645,-2970.58,0.0001378,2]
[353860784,1740099040655,-7420.64,0.0001378,2]
[353860785,1740099040664,-36587.69,0.0001378,2]
[353860786,1740099040674,-500.0,0.0001378,2]
[353860787,1740099040683,-1427.22,0.0001378,2]
[353860788,1740099040693,-1803.93,0.0001378,2]
[353860789,1740099040703,-13094.89,0.0001378,2]
[353860790,1740099040713,-1128.54,0.0001378,2]
[353860791,1740099040723,-3325.92,0.0001378,2]
[353860792,1740099040732,-1290.8,0.0001378,2]
[353860793,1740099040741,-500.0,0.0001378,2]
[353860794,1740099040751,-500.0,0.0001378,2]
[353860795,1740099040760,-1123.55,0.0001378,2]
[353860796,1740099040769,-500.0,0.0001378,2]
[353860797,1740099040779,-727.74,0.0001378,2]
[353860798,1740099040788,-2394.48,0.0001378,2]
[353860799,1740099040798,-883.8,0.0001378,2]
[353860800,1740099040807,-1457.41,0.0001378,2]
[353860801,1740099040816,-3211.81,0.0001378,2]
[353860802,1740099040825,-500.0,0.0001378,2]
[353860803,1740099040835,-500.0,0.0001378,2]
[353860804,1740099040852,-6337.6,0.0001378,2]
[353860805,1740099040862,-531.95,0.0001378,2]
[353860806,1740099040871,-1198.37,0.0001378,2]
[353860807,1740099040880,-2201.57,0.0001378,2]
[353860808,1740099040890,-3441.83,0.0001378,2]
[353860809,1740099040901,-584.09,0.0001378,2]
[353860810,1740099040911,-682.12,0.0001378,2]
[353860811,1740099040924,-1912.84,0.0001378,2]
[353860812,1740099040934,-500.0,0.0001378,2]
[353860813,1740099040943,-855.35,0.0001378,2]
[353860814,1740099040952,-657.23,0.0001378,2]
[353860815,1740099040962,-1282.81,0.0001378,2]
[353860816,1740099040971,-537.23,0.0001378,2]
[353860817,1740099040980,-500.0,0.0001378,2]
[353860818,1740099040990,-2073.86,0.0001378,2]
[353860819,1740099040999,-500.0,0.0001378,2]
[353860820,1740099041008,-2400.28,0.0001378,2]
[353860821,1740099041017,-1084.12,0.0001378,2]
[353860822,1740099041027,-500.0,0.0001378,2]
[353860823,1740099041036,-2528.55,0.0001378,2]
[353860824,1740099041046,-500.0,0.0001378,2]
[353860825,1740099041055,-2085.88,0.0001378,2]
[353860826,1740099041065,-500.0,0.0001378,2]
[353860827,1740099041073,-5873.51,0.0001378,2]
[353860828,1740099041082,-550.36,0.0001378,2]
[353860829,1740099041092,-500.0,0.0001378,2]
[353860830,1740099041101,-500.0,0.0001378,2]
[353860831,1740099041111,-500.0,0.0001378,2]
[353860832,1740099041121,-500.0,0.0001378,2]
[353860833,1740099041131,-500.0,0.0001378,2]
[353860834,1740099041140,-755.6,0.0001378,2]
[353860835,1740099041149,-500.0,0.0001378,2]
[353860836,1740099041159,-500.0,0.0001378,2]
[353860837,1740099041168,-500.0,0.0001378,2]
[353860838,1740099041177,-1871.42,0.0001378,2]
[353860839,1740099041187,-500.0,0.0001378,2]
[353860840,1740099041196,-18104.48,0.0001378,2]
[353860841,1740099041205,-500.0,0.0001378,2]
[353860842,1740099041214,-873.49,0.0001378,2]
[353860843,1740099041225,-500.0,0.0001378,2]
[353860844,1740099041236,-500.0,0.0001378,2]
[353860845,1740099041246,-198.35788193,0.00013862,2]
[353860846,1740099041255,-500.0,0.00013862,2]
[353860847,1740099041265,-528.70107087,0.00013862,2]
[353860848,1740099041275,-460.55664343,0.00013863,2]
[353860849,1740099041284,-500.0,0.00013863,2]
[353860850,1740099041293,-528.42,0.00013863,2]
[353860851,1740099041302,-500.0,0.00013863,2]
[353860852,1740099041315,-500.0,0.00013863,2]
[353860853,1740099041324,-591.42,0.00013863,2]
[353860854,1740099041333,-500.0,0.00013863,2]
[353860855,1740099041342,-500.0,0.00013863,2]
[353860856,1740099041351,-500.0,0.00013863,2]
[353860857,1740099041360,-500.0,0.00013863,2]
[353860858,1740099041370,-1606.58,0.00013863,2]
[353860859,1740099041379,-500.0,0.00013863,2]
[353860860,1740099041389,-500.0,0.00013863,2]
[353860861,1740099041398,-500.0,0.00013863,2]
[353860862,1740099041407,-500.0,0.00013863,2]
[353860863,1740099041416,-721.55,0.00013863,2]
[353860864,1740099041426,-500.0,0.00013863,2]
[353860865,1740099041435,-500.0,0.00013863,2]
[353860866,1740099041443,-834.0,0.00013863,2]
[353860867,1740099041452,-660.44,0.00013863,2]
[353860868,1740099041462,-947.07,0.00013863,2]
[353860869,1740099041471,-500.0,0.00013863,2]
[353860870,1740099041481,-500.0,0.00013863,2]
[353860871,1740099041490,-500.0,0.00013863,2]
[353860872,1740099041499,-1000.0,0.00013863,2]
[353860873,1740099041508,-609.15,0.00013863,2]
[353860874,1740099041519,-500.0,0.00013863,2]
[353860875,1740099041528,-1114.79,0.00013863,2]
[353860876,1740099041537,-1228.62,0.00013863,2]
[353860877,1740099041547,-500.0,0.00013863,2]
[353860878,1740099041556,-621.37,0.00013863,2]
[353860879,1740099041565,-500.0,0.00013863,2]
[353860880,1740099041574,-758.38,0.00013863,2]
[353860881,1740099041584,-613.19,0.00013863,2]
[353860882,1740099041593,-632.61,0.00013863,2]
[353860883,1740099041603,-572.23,0.00013863,2]
[353860884,1740099041612,-500.0,0.00013863,2]
[353860885,1740099041621,-500.0,0.00013863,2]
[353860886,1740099041630,-1175.39,0.00013863,2]
[353860887,1740099041639,-865.49,0.00013863,2]
[353860888,1740099041649,-500.0,0.00013863,2]
[353860889,1740099041658,-500.0,0.00013863,2]
[353860890,1740099041765,-774.91,0.00013863,2]
[353860891,1740099041775,-564.81,0.00013863,2]
[353860892,1740099041784,-500.0,0.00013863,2]
[353860893,1740099041794,-500.0,0.00013863,2]
[353860894,1740099041803,-500.0,0.00013863,2]
[353860895,1740099041813,-500.0,0.00013863,2]
[353860896,1740099041822,-500.0,0.00013863,2]
[353860897,1740099041832,-500.0,0.00013863,2]
[353860898,1740099041841,-500.0,0.00013863,2]
[353860899,1740099041852,-500.0,0.00013863,2]
[353860900,1740099041862,-2172.75,0.00013863,2]
[353860901,1740099041871,-2112.09,0.00013863,2]
[353860902,1740099041881,-500.0,0.00013863,2]
[353860903,1740099041891,-589.91,0.00013863,2]
[353860904,1740099041901,-500.0,0.00013863,2]
[353860905,1740099041910,-528.95,0.00013863,2]
[353860906,1740099041920,-1090.79,0.00013863,2]
[353860907,1740099041930,-2970.58,0.00013863,2]
[353860908,1740099041940,-7420.64,0.00013863,2]
[353860909,1740099041949,-36587.69,0.00013863,2]
[353860910,1740099041959,-500.0,0.00013863,2]
[353860911,1740099041968,-1427.22,0.00013863,2]
[353860912,1740099041977,-1803.93,0.00013863,2]
[353860913,1740099041987,-13094.89,0.00013863,2]
[353860914,1740099041996,-1128.54,0.00013863,2]
[353860915,1740099042006,-3325.92,0.00013863,2]
[353860916,1740099042016,-1290.8,0.00013863,2]
[353860917,1740099042025,-500.0,0.00013863,2]
[353860918,1740099042035,-500.0,0.00013863,2]
[353860919,1740099042044,-1123.55,0.00013863,2]
[353860920,1740099042053,-500.0,0.00013863,2]
[353860921,1740099042062,-727.74,0.00013863,2]
[353860922,1740099042072,-2394.48,0.00013863,2]
[353860923,1740099042081,-883.8,0.00013863,2]
[353860924,1740099042091,-1457.41,0.00013863,2]
[353860925,1740099042100,-3211.81,0.00013863,2]
[353860926,1740099042109,-500.0,0.00013863,2]
[353860927,1740099042118,-6337.6,0.00013863,2]
[353860928,1740099042128,-531.95,0.00013863,2]
[353860929,1740099042137,-1198.37,0.00013863,2]
[353860930,1740099042146,-2201.57,0.00013863,2]
[353860931,1740099042157,-3441.83,0.00013863,2]
[353860932,1740099042166,-584.09,0.00013863,2]
[353860933,1740099042175,-682.12,0.00013863,2]
[353860934,1740099042186,-1912.84,0.00013863,2]
[353860935,1740099042195,-500.0,0.00013863,2]
[353860936,1740099042204,-855.35,0.00013863,2]
[353860937,1740099042214,-657.23,0.00013863,2]
[353860938,1740099042223,-1282.81,0.00013863,2]
[353860939,1740099042236,-537.23,0.00013863,2]
[353860940,1740099042246,-500.0,0.00013863,2]
[353860941,1740099042255,-2073.86,0.00013863,2]
[353860943,1740099042264,-500.0,0.00013863,2]
[353860944,1740099042274,-2400.28,0.00013863,2]
[353860945,1740099042283,-1084.12,0.00013863,2]
[353860946,1740099042292,-2528.55,0.00013863,2]
[353860947,1740099042302,-500.0,0.00013863,2]
[353860948,1740099042312,-2085.88,0.00013863,2]
[353860949,1740099042322,-500.0,0.00013863,2]
[353860950,1740099042331,-5873.51,0.00013863,2]
[353860951,1740099042340,-550.36,0.00013863,2]
[353860952,1740099042349,-500.0,0.00013863,2]
[353860953,1740099042359,-500.0,0.00013863,2]
[353860954,1740099042368,-500.0,0.00013863,2]
[353860955,1740099042377,-500.0,0.00013863,2]
[353860956,1740099042387,-755.6,0.00013863,2]
[353860957,1740099042396,-500.0,0.00013863,2]
[353860958,1740099042405,-500.0,0.00013863,2]
[353860959,1740099042415,-500.0,0.00013863,2]
[353860961,1740099042424,-1871.42,0.00013863,2]
[353860963,1740099042432,-511.50051567,0.00013863,2]
[353860965,1740099042442,-18104.48,0.00013863,2]
[353860966,1740099042451,-500.0,0.00013863,2]
[353860968,1740099042461,-873.49,0.00013863,2]
[353860971,1740099042470,-500.0,0.00013863,2]